bitfinex/quotes_ETHUSD_20250314
["timestamp","ask_amount","ask_price","bid_price","bid_amount"]
[1741944807531,5.26624,1898.9,1898.5,7.011507]
[1741944807754,5.26653,1898.8,1898.4,17.44449]
[1741944807954,5.26659,1898.8,1898.4,5.26741]
[1741944808157,5.26659,1898.8,1898.4,10.53488]
[1741944808158,0.8214,1898.7,1898.4,10.53488]
[1741944808460,0.8214,1898.7,1898.4,5.26741]
[1741944808668,6.06201,1898.9,1898.5,5.26717]
[1741944808870,0.7958,1898.9,1898.3,0.05267128]
[1741944809040,0.7958,1898.9,1898.4,0.8025]
[1741944809243,0.7958,1898.9,1898.7,5.26652]
[1741944809473,5.018,1899.0,1898.9,5.2662]
[1741944809786,5.018,1899.0,1898.7,6.06552]
[1741944809951,5.018,1899.0,1898.8,5.26646]
[1741944810150,5.018,1899.0,1898.7,11.33223]
[1741944810676,5.018,1899.0,1898.7,10.53323]
[1741944810837,5.018,1899.0,1898.7,5.26657]
[1741944811038,5.018,1899.0,1898.7,10.53321]
[1741944811557,5.018,1899.0,1898.7,5.26657]
[1741944812258,5.018,1899.0,1898.7,10.53312]
[1741944812469,5.018,1899.0,1898.8,5.26648]
[1741944812870,5.018,1899.0,1898.9,5.2662]
[1741944813035,5.018,1899.0,1898.8,5.26648]
[1741944813465,5.018,1899.0,1898.8,10.53283]
[1741944813776,5.018,1899.0,1898.8,5.26635]
[1741944815072,5.018,1899.0,1898.7,5.26675]
[1741944815373,5.018,1899.0,1898.7,10.53336]
[1741944815572,5.018,1899.0,1898.7,10.92699869]
[1741944815879,5.018,1899.0,1898.7,5.66024869]
[1741944816483,11.91899,1899.0,1898.7,0.39363869]
[1741944816665,5.26648,1898.8,1898.7,0.39363869]
[1741944817195,9.08018,1898.8,1898.7,0.39363869]
[1741944817337,5.26691,1898.7,1898.3,5.26783]
[1741944817784,3.8137,1898.8,1898.0,6.9045]
[1741944817785,6.08206,1898.5,1898.0,6.9045]
[1741944817991,0.8147,1898.5,1898.0,6.9045]
[1741944818161,5.26769,1898.4,1898.0,12.17308]
[1741944818788,5.26769,1898.4,1898.1,0.39503408]
[1741944819172,0.8147,1898.5,1898.1,0.39503408]
[1741944819679,6.08202,1898.5,1898.1,5.66338408]
[1741944820178,6.08202,1898.5,1898.1,5.26835]
[1741944820474,7.718127,1898.5,1898.1,5.26835]
[1741944820976,12.985707,1898.5,1898.1,5.26835]
[1741944821478,5.26761,1898.4,1898.0,12.17312]
[1741944821781,5.26761,1898.4,1898.0,6.9045]
[1741944821782,5.26789,1898.3,1898.0,6.9045]
[1741944821957,5.26789,1898.3,1898.0,0.8145]
[1741944822173,5.2676,1898.4,1898.0,6.08297]
[1741944822375,5.2676,1898.4,1898.0,11.35148]
[1741944822574,5.2676,1898.4,1898.1,5.26841]
[1741944822878,7.718127,1898.5,1898.1,5.26841]
[1741944823396,5.26765,1898.4,1897.8,1.22525312]
[1741944823556,5.26797,1898.3,1897.9,5.26887]
[1741944824393,5.26797,1898.3,1897.9,5.66342312]
[1741944824590,5.26765,1898.4,1898.0,5.2685]
[1741944824824,2.450807,1898.5,1898.0,5.32138374]
[1741944825081,2.450807,1898.5,1898.0,5.2687]
[1741944825285,7.718257,1898.5,1898.1,5.26825]
[1741944826579,7.718257,1898.5,1898.1,10.53647]
[1741944826897,2.450807,1898.5,1898.1,5.26822]
[1741944827061,0.8147,1898.5,1898.1,5.26822]
[1741944827263,0.8147,1898.5,1898.2,5.26814]
[1741944827782,6.08214,1898.5,1898.1,5.26822]
[1741944828373,5.2676,1898.4,1898.0,5.66323312]
[1741944828582,6.08202,1898.5,1898.1,5.2684]
[1741944828779,7.191422,1898.5,1898.1,5.2684]
[1741944829188,5.2678,1898.4,1898.0,0.39455312]
[1741944829494,5.26788,1898.3,1898.0,0.39455312]
[1741944829671,5.2678,1898.4,1898.0,0.39455312]
[1741944829869,5.2678,1898.4,1898.0,5.26859]
[1741944830267,7.191422,1898.5,1898.1,5.26841]
[1741944831081,12.458982,1898.5,1898.1,5.26841]
[1741944831293,7.191422,1898.5,1898.1,5.26841]
[1741944831493,12.458952,1898.5,1898.1,5.26841]
[1741944831996,7.191422,1898.5,1898.1,5.26841]
[1741944832180,6.08202,1898.5,1898.1,5.26823]
[1741944832780,11.34959,1898.5,1898.1,5.26823]
[1741944832988,5.2676,1898.4,1898.0,5.26865]
[1741944833976,5.2679,1898.3,1897.9,5.26895]
[1741944834178,5.2679,1898.3,1897.9,5.26882]
[1741944834383,5.26825,1898.2,1897.8,6.49448312]
[1741944834714,10.5366,1898.2,1897.8,6.49448312]
[1741944834918,5.26825,1898.2,1897.8,6.49448312]
[1741944835069,6.05092,1898.1,1897.8,0.39455312]
[1741944835263,6.05092,1898.1,1897.7,5.26926]
[1741944835503,5.26908,1897.9,1897.6,5.66432312]
[1741944835704,5.2689,1898.0,1897.6,5.71701585]
[1741944835911,6.08001,1897.9,1897.6,0.39455312]
[1741944836071,5.26941,1897.8,1897.6,0.39455312]
[1741944836595,6.08001,1897.9,1897.6,0.39455312]
[1741944836970,6.08001,1897.9,1897.5,5.26993]
[1741944838721,6.08001,1897.9,1897.5,10.53983]
[1741944838998,3.60513,1898.0,1897.7,5.26932]
[1741944839300,8.87395,1898.0,1897.6,5.26975]
[1741944840372,3.3958857,1898.0,1897.6,5.26981]
[1741944840898,13.9336557,1898.0,1897.6,5.26981]
[1741944841073,8.254844,1897.9,1897.4,6.04714]
[1741944841274,6.03945,1897.8,1897.4,11.31732]
[1741944841474,6.03945,1897.8,1897.4,6.04698]
[1741944841711,6.03945,1897.8,1897.4,11.31716]
[1741944842019,7.2075294,1897.8,1897.2,5.2709]
[1741944842323,5.26953,1897.7,1897.3,5.27054]
[1741944842469,5.26991,1897.6,1897.1,6.06784]
[1741944842672,5.27019,1897.5,1897.1,6.1205434]
[1741944842903,5.27019,1897.5,1897.2,5.27091]
[1741944843096,5.26989,1897.6,1897.2,5.27091]
[1741944843296,10.53992,1897.6,1897.2,5.27091]
[1741944843472,18.4968294,1897.8,1897.1,6.06784]
[1741944843687,5.27024,1897.5,1897.1,11.33894]
[1741944843915,5.27009,1897.5,1897.1,6.0678]
[1741944844285,5.27037,1897.4,1897.1,6.0678]
[1741944844499,6.03049,1897.5,1897.1,11.39155588]
[1741944844815,5.27047,1897.4,1897.1,0.01]
[1741944845112,5.27076,1897.3,1897.1,0.01]
[1741944845419,11.34206,1897.3,1897.1,0.01]
[1741944845627,5.27092,1897.2,1897.1,0.01]
[1741944846288,8.27092,1897.2,1897.1,0.01]
[1741944846489,9.64612,1897.2,1897.1,0.01]
[1741944846684,11.4363744,1897.2,1897.1,0.01]
[1741944846903,10.8863744,1897.2,1897.1,0.01]
[1741944847414,5.6154544,1897.2,1897.1,0.01]
[1741944847614,10.8863744,1897.2,1897.1,0.01]
[1741944848429,5.6154544,1897.2,1897.1,0.01]
[1741944848620,13.8720384,1897.2,1897.1,0.01]
[1741944850034,14.4220384,1897.2,1897.1,0.01]
[1741944852434,20.4420384,1897.2,1897.1,0.01]
[1741944855796,25.4670384,1897.2,1897.1,0.01]
[1741944856236,20.4420384,1897.2,1897.1,0.01]
[1741944856396,25.4670384,1897.2,1897.1,0.01]
[1741944856597,21.6561744,1897.2,1897.1,0.01]
[1741944856933,24.6418384,1897.2,1897.1,0.01]
[1741944857142,25.4138384,1897.2,1897.1,0.01]
[1741944859349,9.02,1897.2,1897.1,0.01]
[1741944859548,14.29092,1897.2,1897.1,0.01]
[1741944859710,9.02,1897.2,1897.1,0.01]
[1741944861130,9.02,1897.2,1897.1,0.8315]
[1741944861441,3.0,1897.2,1897.1,6.1027]
[1741944861644,2.97206342,1897.2,1897.1,6.1027]
[1741944861817,2.97206342,1897.2,1897.1,0.8315]
[1741944862811,5.42340105,1897.4,1897.1,0.8315]
[1741944863010,5.027,1897.4,1897.2,5.27091]
[1741944864019,5.027,1897.4,1897.3,5.27064]
[1741944864437,5.027,1897.4,1897.2,5.27091]
[1741944864633,5.027,1897.4,1897.1,6.712967]
[1741944864837,10.2975,1897.4,1897.1,0.8315]
[1741944865263,15.56807,1897.4,1897.1,0.8315]
[1741944865462,5.27076,1897.3,1897.1,0.01]
[1741944865643,10.54167,1897.3,1897.1,0.01]
[1741944865844,5.27092,1897.2,1897.1,0.01]
[1741944866154,12.2343834,1897.4,1897.1,0.01]
[1741944866859,5.027,1897.4,1897.2,0.7677]
[1741944867061,10.29739,1897.4,1897.2,0.7677]
[1741944867363,10.29739,1897.4,1897.1,0.01]
[1741944868767,5.027,1897.4,1897.1,5.28113]
[1741944869121,5.027,1897.4,1897.2,0.8134]
[1741944870631,2.985664,1897.5,1897.2,6.08431]
[1741944870823,5.026,1897.7,1897.4,5.27021]
[1741944871237,10.29556,1897.7,1897.4,5.27021]
[1741944871431,5.26982,1897.6,1897.2,7.220611]
[1741944872245,13.281204,1897.7,1897.3,5.2705]
[1741944872445,13.281204,1897.7,1897.3,5.9925431]
[1741944872640,8.011664,1897.7,1897.4,5.27016]
[1741944873158,13.281204,1897.7,1897.4,5.27016]
[1741944873366,13.68203996,1897.7,1897.4,5.27016]
[1741944874066,13.68203996,1897.7,1897.3,5.9926431]
[1741944874433,18.95176996,1897.7,1897.3,5.9926431]
[1741944874634,13.68203996,1897.7,1897.3,5.9926431]
[1741944874973,13.68203996,1897.7,1897.3,11.2631631]
[1741944875269,13.68203996,1897.7,1897.4,5.27036]
[1741944875460,10.69437596,1897.7,1897.3,5.27052]
[1741944875861,5.26982,1897.6,1897.3,5.27052]
[1741944876575,5.26982,1897.6,1897.2,6.47897327]
[1741944876764,5.26982,1897.6,1897.2,7.6549776]
[1741944877261,5.26982,1897.6,1897.2,12.9256976]
[1741944877470,5.26982,1897.6,1897.3,5.2706]
[1741944877675,14.46173996,1897.7,1897.3,10.54106]
[1741944877676,14.46178996,1897.7,1897.3,10.54106]
[1741944877974,5.42483596,1897.7,1897.4,5.27012]
[1741944878338,22.69927,1897.8,1897.4,5.27012]
[1741944878576,22.457,1897.8,1897.5,0.8082]
[1741944878737,17.43,1897.8,1897.5,11.34801]
[1741944878939,17.43,1897.8,1897.5,6.07807]
[1741944879879,10.29801,1897.9,1897.5,6.07807]
[1741944880477,5.029,1897.9,1897.6,5.26976]
[1741944880644,10.29386,1898.0,1897.6,11.147186]
[1741944880846,10.29386,1898.0,1897.6,5.877426]
[1741944882269,10.29386,1898.0,1897.6,11.147046]
[1741944882451,15.56268,1898.0,1897.6,5.877446]
[1741944882651,10.29382,1898.0,1897.6,11.147116]
[1741944883142,10.29382,1898.0,1897.7,5.26951]
[1741944883344,8.254174,1898.1,1897.7,5.26951]
[1741944883566,5.022,1898.1,1897.8,11.35582]
[1741944883773,11.253904,1898.2,1897.8,11.35582]
[1741944883951,5.022,1898.1,1897.9,5.26896]
[1741944884274,5.021,1898.1,1897.9,5.26896]
[1741944884480,5.021,1898.1,1897.8,6.08693]
[1741944884911,5.021,1898.1,1897.8,11.35603]
[1741944885085,5.021,1898.1,1897.9,5.26897]
[1741944886085,5.021,1898.1,1897.8,7.33387256]
[1741944886378,8.254454,1898.0,1897.6,0.751]
[1741944886583,13.523384,1898.0,1897.6,6.02066]
[1741944886952,13.523384,1898.0,1897.6,11.29033]
[1741944886953,8.254454,1898.0,1897.6,11.29033]
[1741944887393,8.254454,1898.0,1897.6,6.02066]
[1741944887553,8.254454,1898.0,1897.6,11.29028]
[1741944887750,5.26879,1898.0,1897.7,5.26951]
[1741944891409,10.28943,1898.1,1897.7,5.26937]
[1741944891793,10.28943,1898.1,1897.7,5.26953]
[1741944892286,10.28943,1898.1,1897.7,10.53888]
[1741944895187,10.28943,1898.1,1897.8,5.26925]
[1741944895390,5.021,1898.1,1897.8,5.26922]
[1741944896085,10.23647351,1898.2,1897.6,6.41514684]
[1741944896297,10.23647351,1898.2,1897.7,0.64151468]
[1741944896298,5.009,1898.1,1897.7,0.64151468]
[1741944897097,5.009,1898.1,1897.9,5.26898]
[1741944897695,4.21647351,1898.2,1897.9,5.26898]
[1741944897913,6.23980951,1898.2,1897.9,5.26898]
[1741944898698,6.23980951,1898.2,1897.9,5.26887]
[1741944899076,0.40070951,1898.2,1898.0,5.26867]
[1741944899293,5.009,1898.2,1898.0,5.26867]
[1741944899671,17.431,1898.6,1898.0,5.26867]
[1741944899672,26.502194,1898.6,1898.1,5.26816]
[1741944899872,26.502164,1898.6,1898.2,5.26796]
[1741944900107,5.009,1898.5,1898.2,5.26796]
[1741944900301,5.009,1898.5,1898.2,6.400146]
[1741944900496,5.009,1898.5,1898.3,5.26784]
[1741944900802,17.431,1898.6,1898.4,5.26759]
[1741944901603,17.431,1898.6,1898.5,5.26731]
[1741944901812,17.431,1898.6,1898.3,0.7776]
[1741944901987,9.051674,1898.5,1898.1,5.26842]
[1741944902172,9.051674,1898.5,1898.1,10.53665]
[1741944902378,9.051674,1898.5,1898.1,5.26823]
[1741944903017,9.051674,1898.5,1898.1,10.53649]
[1741944903196,3.784264,1898.5,1898.0,6.0763]
[1741944903507,5.26769,1898.4,1898.0,5.2686]
[1741944904014,10.27669,1898.4,1898.0,5.2686]
[1741944904624,5.009,1898.4,1898.0,0.05268421]
[1741944904908,5.009,1898.4,1898.2,5.26811]
[1741944905086,0.7986,1898.5,1898.3,5.26773]
[1741944905288,17.431,1898.6,1898.2,5.26811]
[1741944905500,30.1247564,1898.6,1898.2,5.26811]
[1741944905673,24.8575764,1898.6,1898.3,5.26786]
[1741944905878,22.439,1898.6,1898.3,10.53552]
[1741944906116,22.439,1898.6,1898.3,5.26784]
[1741944906316,22.439,1898.6,1898.4,5.26736]
[1741944906485,17.431,1898.6,1898.4,10.53478]
[1741944906690,17.431,1898.6,1898.4,11.588258]
[1741944906919,5.40213628,1898.8,1898.5,5.26731]
[1741944907224,15.93547628,1898.8,1898.4,6.05136]
[1741944907582,10.66876628,1898.8,1898.4,6.05136]
[1741944907784,2.985664,1898.5,1898.0,6.8653]
[1741944908100,0.8232,1898.6,1898.2,5.268]
[1741944908296,6.09027,1898.6,1898.2,5.26797]
[1741944908509,11.3575,1898.6,1898.2,5.26797]
[1741944908748,5.26735,1898.5,1898.1,5.26842]
[1741944908890,0.8273,1898.4,1898.0,6.04399]
[1741944909091,0.8273,1898.4,1898.1,5.26839]
[1741944909932,6.09004,1898.6,1898.2,5.26804]
[1741944910212,0.823,1898.6,1898.3,10.53553]
[1741944910416,0.823,1898.6,1898.2,0.7871]
[1741944910631,0.823,1898.6,1897.8,3.0]
[1741944910632,5.26803,1898.3,1897.8,6.02017]
[1741944910804,0.7977,1898.4,1897.8,6.02017]
[1741944910805,11.09246,1898.4,1897.9,5.2688]
[1741944910998,5.26791,1898.3,1897.9,5.2688]
[1741944911202,5.26791,1898.3,1897.8,0.7511]
[1741944911203,5.26824,1898.2,1897.8,6.02029]
[1741944911405,5.26824,1898.2,1897.9,0.602029]
[1741944911730,10.53651,1898.2,1897.9,0.602029]
[1741944911922,5.26824,1898.2,1897.9,0.602029]
[1741944913909,2.985664,1898.3,1897.9,0.602029]
[1741944914241,6.03177,1898.2,1897.8,6.02014]
[1741944914715,0.7635,1898.2,1897.8,6.02014]
[1741944914917,0.7635,1898.2,1897.9,5.26891]
[1741944915139,6.03166,1898.2,1897.8,11.28928]
[1741944915340,6.03166,1898.2,1897.8,7.21321947]
[1741944915506,6.03166,1898.2,1897.9,5.26895]
[1741944915831,2.985664,1898.3,1897.9,10.53777]
[1741944916040,16.38567,1898.4,1897.9,10.53777]
[1741944916217,11.11781,1898.4,1898.0,10.53696]
[1741944916414,11.11781,1898.4,1898.0,5.26847]
[1741944916729,5.26795,1898.3,1897.9,5.26886]
[1741944916937,10.53604,1898.3,1897.9,5.99016395]
[1741944917119,5.26821,1898.2,1897.9,0.72130395]
[1741944917951,5.26795,1898.3,1897.9,5.99025395]
[1741944918253,5.26795,1898.3,1897.9,11.25905395]
[1741944918432,11.1178,1898.4,1898.0,5.26869]
[1741944918636,11.1178,1898.4,1898.1,6.02811]
[1741944918637,10.2946,1898.4,1898.1,6.02811]
[1741944919020,10.2946,1898.4,1898.1,0.7597]
[1741944919614,15.56241,1898.4,1898.1,0.7597]
[1741944920343,5.26793,1898.3,1898.0,1.1258794]
[1741944920641,6.10113,1898.3,1897.9,6.80267395]
[1741944920808,6.10113,1898.3,1897.9,12.07141395]
[1741944921343,0.8332,1898.3,1898.0,6.4758414]
[1741944921511,5.027,1898.4,1898.1,5.26841]
[1741944922121,10.29461,1898.4,1898.1,5.26841]
[1741944922332,5.027,1898.4,1898.1,5.26841]
[1741944923141,0.7751,1898.5,1898.3,5.26773]
[1741944923340,11.28714,1898.6,1898.4,0.526773]
[1741944923551,11.28714,1898.6,1898.2,5.26813]
[1741944923846,5.26735,1898.5,1898.2,5.26813]
[1741944924020,11.28708,1898.6,1898.2,5.26813]
[1741944924543,0.7851,1898.2,1898.0,1.2071414]
[1741944924842,0.7851,1898.2,1897.9,5.26879]
[1741944925037,14.096764,1898.4,1898.0,5.26868]
[1741944925241,0.8155,1898.4,1898.1,5.2683]
[1741944925539,5.028,1898.5,1898.3,5.26779]
[1741944925749,5.028,1898.5,1898.3,1.053582]
[1741944927215,10.29531,1898.5,1898.3,1.053582]
[1741944927416,0.7892,1898.4,1897.9,6.07317]
[1741944927612,5.268,1898.3,1897.9,11.34195]
[1741944927842,6.0568,1898.4,1898.0,5.26858]
[1741944929457,0.7892,1898.4,1898.0,5.26851]
[1741944929638,0.7892,1898.4,1898.1,0.526851]
[1741944929841,0.7892,1898.4,1897.9,6.07316]
[1741944930038,6.05691,1898.4,1897.9,0.8042]
[1741944930551,5.26807,1898.3,1897.9,6.07309]
[1741944930716,5.26807,1898.3,1897.9,5.26889]
[1741944931352,6.05691,1898.4,1897.9,10.53763]
[1741944931556,6.05691,1898.4,1898.0,1.053763]
[1741944931846,6.05691,1898.4,1898.0,6.322393]
[1741944932552,6.05691,1898.4,1898.0,11.590913]
[1741944932749,6.05691,1898.4,1898.0,6.322283]
[1741944932922,6.05691,1898.4,1898.1,0.19406727]
[1741944933116,0.7892,1898.4,1898.1,6.1140323]
[1741944933320,10.29536,1898.5,1898.2,5.26811]
[1741944933321,3.0,1898.5,1898.2,5.26811]
[1741944933547,13.28932,1898.5,1898.1,6.9343023]
[1741944933851,13.28932,1898.5,1898.2,0.19755924]
[1741944933852,8.26732,1898.5,1898.2,0.19755924]
[1741944934029,8.26732,1898.5,1898.1,6.74023503]
[1741944934231,8.26732,1898.5,1898.3,0.19744074]
[1741944934462,8.26732,1898.5,1898.2,0.87158274]
[1741944934672,8.26732,1898.5,1898.4,0.19732225]
[1741944934835,8.26732,1898.5,1898.2,0.6740235]
[1741944935042,8.26732,1898.5,1898.4,0.19732225]
[1741944935348,8.26732,1898.5,1898.2,0.6740235]
[1741944935551,8.26732,1898.5,1898.3,0.19738751]
[1741944937552,5.26732,1898.5,1898.3,0.19738751]
[1741944939926,5.26759,1898.4,1898.3,0.19738751]
[1741944940664,5.26787,1898.3,1897.8,5.26925]
[1741944940872,1.840391,1898.4,1897.7,0.8034]
[1741944940873,0.7869,1898.1,1897.7,0.8034]
[1741944941022,14.32472,1898.0,1897.9,0.19785398]
[1741944941222,8.2691,1897.9,1897.5,5.27005]
[1741944941729,8.2691,1897.9,1897.5,10.53973]
[1741944941927,3.0,1897.9,1897.6,6.323523]
[1741944942119,3.0,1897.9,1897.6,5.26955]
[1741944942524,3.0,1897.9,1897.7,5.26953]
[1741944943034,3.0,1897.9,1897.7,10.53894]
[1741944943241,6.02,1898.1,1897.8,5.26925]
[1741944943958,5.26872,1898.0,1897.7,5.26952]
[1741944944634,5.26872,1898.0,1897.7,6.403404]
[1741944946261,5.2687,1898.0,1897.7,6.403404]
[1741944946464,14.44788192,1898.2,1897.7,6.403154]
[1741944946768,5.26843,1898.1,1897.8,5.26924]
[1741944948173,14.44788192,1898.2,1897.8,5.26924]
[1741944948461,14.44788192,1898.2,1897.7,6.403344]
[1741944948761,14.44788192,1898.2,1897.8,0.83874799]
[1741944948940,19.71614192,1898.2,1897.8,0.83874799]
[1741944949143,14.44787192,1898.2,1897.8,0.83874799]
[1741944949348,9.17961192,1898.2,1897.8,0.83874799]
[1741944949831,14.44780192,1898.2,1897.8,5.9094844]
[1741944950032,14.44780192,1898.2,1897.9,0.19829504]
[1741944950433,14.44780192,1898.2,1897.9,6.07799298]
[1741944950434,9.17961192,1898.2,1897.9,6.07799298]
[1741944950634,3.0,1898.2,1898.1,5.26842]
[1741944950853,11.032,1898.3,1898.1,5.26833]
[1741944951035,14.017664,1898.3,1898.1,0.19801234]
[1741944954668,11.032,1898.3,1898.1,0.19801234]
[1741944954857,5.012,1898.3,1898.2,5.26814]
[1741944955055,17.43,1898.5,1898.2,6.8109174]
[1741944955667,17.43,1898.5,1898.2,12.0788874]
[1741944955985,17.43,1898.5,1898.4,5.26759]
[1741944956357,17.43,1898.5,1898.4,5.4648514]
[1741944957989,17.43,1898.5,1898.4,0.1972614]
[1741944959019,0.7688,1899.0,1898.5,0.7533]
[1741944959150,23.449,1899.2,1899.1,5.26565]
[1741944959477,17.429,1899.2,1899.1,5.46194548]
[1741944960380,5.26459,1899.5,1899.1,7.36402303]
[1741944960581,10.28059,1899.5,1899.1,6.29124548]
[1741944961081,5.26485,1899.4,1899.1,1.02559548]
[1741944961443,10.28059,1899.5,1899.1,6.29124548]
[1741944963887,15.54536,1899.5,1899.1,6.29124548]
[1741944964048,5.26482,1899.4,1899.1,1.02559548]
[1741944964253,5.26482,1899.4,1899.1,0.82543703]
[1741944965071,6.04945,1899.3,1899.1,0.82543703]
[1741944965257,6.04945,1899.3,1899.1,0.19629548]
[1741944965456,5.26515,1899.3,1898.9,6.06401]
[1741944965646,5.26515,1899.3,1899.2,0.19486234]
[1741944965859,5.26515,1899.3,1898.9,6.06401]
[1741944966053,5.26515,1899.3,1899.2,0.19486234]
[1741944966377,5.26489,1899.4,1899.2,0.19486234]
[1741944966589,5.26489,1899.4,1899.0,5.26592]
[1741944966757,5.26489,1899.4,1899.1,0.526592]
[1741944966963,5.26489,1899.4,1899.1,0.72157273]
[1741944967510,10.52992,1899.4,1899.1,0.72157273]
[1741944967689,10.52992,1899.4,1899.1,0.19498073]
[1741944967985,5.26489,1899.4,1899.1,0.19498073]
[1741944968459,10.28055,1899.5,1899.1,5.46052073]
[1741944968852,5.26485,1899.4,1899.1,5.46052073]
[1741944971048,10.28065,1899.5,1899.1,5.46052073]
[1741944973493,5.26497,1899.4,1899.1,5.46062073]
[1741944974001,10.28061,1899.5,1899.1,5.46062073]
[1741944976396,5.016,1899.5,1899.1,6.5331148]
[1741944976571,6.02,1899.6,1899.3,5.26509]
[1741944976765,9.42241352,1899.7,1899.4,5.26467]
[1741944976970,14.42741352,1899.7,1899.4,5.4592956]
[1741944977173,19.69140352,1899.7,1899.4,0.1946256]
[1741944977389,19.69140352,1899.7,1899.3,10.53001]
[1741944977589,19.69140352,1899.7,1899.4,0.19458003]
[1741944977791,19.69140352,1899.7,1899.3,10.53001]
[1741944978104,14.025,1899.7,1899.4,5.4591361]
[1741944978400,9.02,1899.7,1899.4,6.2727361]
[1741944978599,9.02,1899.7,1899.5,5.26453]
[1741944978773,9.02,1899.7,1899.6,0.19419143]
[1741944979880,14.28398,1899.7,1899.3,5.26501]
[1741944980274,17.15790119,1899.7,1899.4,0.19437496]
[1741944980602,17.15790119,1899.7,1899.5,0.19425661]
[1741944980803,17.15790119,1899.7,1899.3,10.52992]
[1741944981101,17.15790119,1899.7,1899.4,0.19437496]
[1741944981266,17.15790119,1899.7,1899.3,10.52992]
[1741944981470,17.15790119,1899.7,1899.5,0.19425661]
[1741944981671,17.15790119,1899.7,1899.3,5.26491]
[1741944981870,17.15790119,1899.7,1899.6,0.19419143]
[1741944982381,17.15790119,1899.7,1899.3,5.26491]
[1741944982698,17.15790119,1899.7,1899.4,0.19442812]
[1741944982870,17.15790119,1899.7,1899.3,5.26491]
[1741944983077,17.15790119,1899.7,1899.5,0.19430977]
[1741944983382,0.7684,1899.5,1899.0,6.06828]
[1741944983574,5.26482,1899.4,1899.0,6.06822]
[1741944983788,5.26482,1899.4,1899.0,6.06813]
[1741944985503,5.26482,1899.4,1899.0,11.33387]
[1741944985905,0.7684,1899.5,1899.1,5.26565]
[1741944986204,0.7684,1899.5,1899.2,5.26526]
[1741944986406,10.52889,1899.6,1899.2,5.26526]
[1741944986582,5.26457,1899.5,1899.2,5.26526]
[1741944986966,5.26457,1899.5,1899.1,5.872455]
[1741944987701,0.7689,1899.4,1899.0,6.06831]
[1741944987907,5.26519,1899.3,1899.0,0.8024]
[1741944988083,6.03381,1899.4,1899.0,6.06819]
[1741944988273,16.30383,1899.4,1899.0,6.06819]
[1741944988476,11.03881,1899.4,1899.0,6.06819]
[1741944990105,5.7739,1899.4,1899.1,5.26545]
[1741944990311,5.005,1899.4,1899.2,5.26527]
[1741944990509,5.005,1899.4,1899.3,0.8288]
[1741944990677,5.005,1899.4,1899.1,6.05918]
[1741944992711,5.005,1899.4,1899.1,11.32464]
[1741944992912,5.005,1899.4,1899.1,12.5704464]
[1741944993082,5.005,1899.4,1899.2,5.26537]
[1741944993610,5.26459,1899.5,1899.3,0.18765145]
[1741944995118,5.26482,1899.4,1899.3,0.18765145]
[1741944995278,5.26482,1899.4,1899.0,5.26588]
[1741944995683,5.2651,1899.3,1899.1,0.18788821]
[1741944996216,5.26537,1899.2,1899.1,0.18788821]
[1741944996529,5.26537,1899.2,1898.8,6.02322]
[1741944996729,5.26537,1899.2,1899.1,0.18788821]
[1741944996929,6.0845,1899.3,1898.9,5.26611]
[1741944997136,11.34972,1899.3,1899.1,0.18788821]
[1741944997414,5.26565,1899.1,1899.0,0.18800661]
[1741944997619,5.26565,1899.1,1898.9,0.49428516]
[1741944997823,10.27037,1899.2,1898.9,0.49428516]
[1741944998388,6.08532,1899.0,1898.9,0.49428516]
[1741944998587,6.08532,1899.0,1898.6,6.0239]
[1741944998790,6.08532,1899.0,1898.6,7.153018]
[1741944998990,8.26587,1899.1,1898.7,10.53303]
[1741944999291,8.26587,1899.1,1898.7,5.26653]
[1741944999494,3.0,1899.1,1898.8,5.26646]
[1741945000626,3.0,1899.1,1898.9,5.26608]
[1741945001205,17.09578,1899.2,1898.9,5.26608]
[1741945001607,17.09578,1899.2,1898.8,6.08428]
[1741945002234,11.025,1899.2,1898.8,7.26864887]
[1741945002533,11.025,1899.2,1898.9,5.26605]
[1741945004496,11.025,1899.2,1898.7,5.26668]
[1741945004497,0.8018,1899.1,1898.7,5.26668]
[1741945004703,0.8018,1899.1,1898.8,5.26648]
[1741945005615,0.8018,1899.1,1898.8,10.53277]
[1741945005813,0.8018,1899.1,1898.9,5.26615]
[1741945006015,11.025,1899.2,1898.9,6.07415]
[1741945007223,0.7944,1899.1,1898.8,5.2664]
[1741945008330,6.06011,1899.1,1898.8,5.2664]
[1741945008631,0.7944,1899.1,1898.8,10.53271]
[1741945008808,16.29048,1899.2,1898.9,0.18205118]
[1741945009018,11.025,1899.2,1898.9,5.44816118]
[1741945009632,16.2904,1899.2,1898.9,5.44816118]
[1741945010213,11.025,1899.2,1898.9,0.18205118]
[1741945010433,16.29047,1899.2,1898.9,0.18205118]
[1741945011336,18.86334024,1899.2,1898.9,0.18205118]
[1741945013620,24.12894024,1899.2,1898.9,0.18205118]
[1741945014318,18.86334024,1899.2,1898.9,0.18205118]
[1741945014511,16.29047,1899.2,1898.9,0.18205118]
[1741945015310,21.55608,1899.2,1898.9,0.18205118]
[1741945016639,5.2657,1899.1,1898.9,0.18205118]
[1741945016942,5.2657,1899.1,1898.8,5.26647]
[1741945017143,5.2657,1899.1,1899.0,0.18197076]
[1741945017646,5.26613,1899.0,1898.5,0.7756]
[1741945017938,5.26641,1898.9,1898.6,0.17592962]
[1741945018144,11.08404,1898.8,1898.6,0.17592962]
[1741945018312,16.35071,1898.8,1898.4,5.26757]
[1741945018644,5.26679,1898.7,1898.4,5.26757]